fUST/lending_fUST_20260402
["ID","MTS","AMOUNT","RATE_DAILY","PERIOD"]
[419291238,1775117249754,579.7883608,0.00036549,120]
[419291241,1775117298806,1000.0,0.00032877,120]
[419291242,1775117316143,578.63416613,0.00036549,60]
[419291243,1775117317447,1000.0,0.00032877,120]
[419291244,1775117332755,1000.0,0.00032877,120]
[419291245,1775117337972,641.5813423,0.00036549,30]
[419291246,1775117339499,1162.76994622,0.00036549,120]
[419291247,1775117346618,3583.73512382,0.00036549,30]
[419291248,1775117346841,1000.0,0.00032877,120]
[419291249,1775117348727,1500.0,0.00032876,120]
[419291250,1775117352672,528.438388,0.00036549,30]
[419291251,1775117354013,313.9979852,0.00036549,30]
[419291252,1775117355867,1002.12325577,0.00036549,120]
[419291253,1775117361961,367.51250415,0.00036549,30]
[419291254,1775117386345,2000.0,0.00032877,120]
[419291255,1775117386854,1269.74310805,0.00036549,60]
[419291256,1775117394321,986.76297115,0.00036549,120]
[419291257,1775117397103,1344.73131158,0.00036549,120]
[419291258,1775117397277,1241.55732734,0.00036549,60]
[419291259,1775117399106,2921.64849815,0.00036549,120]
[419291260,1775117399283,158.38144629,0.00036549,30]
[419291261,1775117400110,172.7532953,0.00036549,36]
[419291262,1775117401313,2689.46947031,0.0003287,120]
[419291263,1775117401349,2021.94017054,0.00025,120]
[419291264,1775117401456,1211.82073677,0.0002,120]
[419291265,1775117402616,1343.16125566,0.00036549,30]
[419291266,1775117402807,186.37712522,0.00036549,31]
[419291267,1775117403940,1170.28654533,0.00025,120]
[419291269,1775117406603,1447.19809888,0.0003287,120]
[419291271,1775117406998,504.0,0.00032877,120]
[419291272,1775117407599,646.74085177,0.00036549,60]
[419291273,1775117408041,530.5113099,0.00036549,30]
[419291274,1775117408576,625.49378212,0.00036549,30]
[419291275,1775117408691,180.16238536,0.0003,120]
[419291276,1775117409574,150.16441289,0.00036549,120]
[419291277,1775117409610,2014.18642843,0.00032,120]
[419291278,1775117412087,200.0199008,0.00036549,30]
[419291279,1775117412557,382.75700988,0.00036549,30]
[419291280,1775117412823,1030.5598989,0.00029,120]
[419291281,1775117418885,6000.0,0.00036549,120]
[419291339,1775117433396,1000.0,0.000325,120]
[419291343,1775117438229,-1000.0,0.00013699,2]
[419291344,1775117438239,-399.75354257,0.00018101,2]
[419291345,1775117438249,-685.90763697,0.00019655,2]
[419291346,1775117438258,-324.35365626,0.00019655,2]
[419291347,1775117438268,-506.29578532,0.00019787,2]
[419291348,1775117438278,-1070.65895209,0.00019793,2]
[419291349,1775117438289,-1082.0,0.0002009,2]
[419291350,1775117438298,-3882.9457214,0.00020091,2]
[419291351,1775117438308,-300.0,0.00020132,2]
[419291352,1775117438318,-300.0,0.00020132,2]
[419291353,1775117438327,-300.0,0.00020132,2]
[419291354,1775117438337,-246.0,0.00020132,2]
[419291355,1775117438347,-3609.8505667,0.00020133,2]
[419291356,1775117438356,-440.0,0.00020552,2]
[419291357,1775117438366,-184.0,0.00020552,2]
[419291358,1775117438375,-210.03,0.000206,2]
[419291359,1775117438385,-629.76639472,0.00020689,2]
[419291360,1775117438395,-298.14853668,0.00020689,2]
[419291361,1775117438404,-530.04184298,0.00020689,2]
[419291362,1775117438414,-1119.58470172,0.00020727,2]
[419291363,1775117438423,-2633.43303683,0.00020813,2]
[419291364,1775117438433,-8991.72431838,0.000209,2]
[419291365,1775117438442,-179.0,0.000209,2]
[419291366,1775117438452,-324.9282386,0.000209,2]
[419291367,1775117438461,-383.2,0.00020905,10]
[419291368,1775117438471,-211.24695508,0.00020913,2]
[419291369,1775117438481,-500.0,0.00020914,2]
[419291370,1775117438490,-500.0,0.00020914,2]
[419291371,1775117438500,-282.28785085,0.00020914,2]
[419291372,1775117438510,-237.20571629,0.00020914,2]
[419291373,1775117438525,-500.0,0.00020914,2]
[419291374,1775117438535,-500.0,0.00020914,2]
[419291375,1775117438544,-492.48260404,0.00020914,2]
[419291376,1775117438554,-500.0,0.00020914,2]
[419291377,1775117438563,-500.0,0.00020914,2]
[419291378,1775117438572,-500.0,0.00020914,2]
[419291379,1775117438582,-500.0,0.00020914,2]
[419291380,1775117438592,-500.0,0.00020914,2]
[419291381,1775117438602,-500.0,0.00020914,2]
[419291382,1775117438611,-500.0,0.00020914,2]
[419291383,1775117438620,-500.0,0.00020914,2]
[419291384,1775117438630,-500.0,0.00020914,2]
[419291385,1775117438640,-178.22578632,0.00020914,2]
[419291386,1775117438649,-405.83279402,0.00020914,2]
[419291387,1775117438662,-406.31860341,0.00020914,2]
[419291388,1775117438672,-375.84459467,0.00020914,2]
[419291389,1775117438682,-500.0,0.00020914,2]
[419291390,1775117438691,-500.0,0.00020914,2]
[419291391,1775117438700,-353.14662026,0.00020914,2]
[419291392,1775117438711,-515.68573244,0.00020914,2]
[419291393,1775117438720,-40652.32359439,0.00020915,2]
[419291394,1775117438733,-121889.94685355,0.00020915,2]
[419291395,1775117438748,-1361.65902798,0.00020915,2]
[419291676,1775117443280,500.0,0.000325,120]
[419291883,1775117446440,-487.94,0.00020905,10]
[419291884,1775117446450,-13388.75578398,0.00020915,2]
[419291892,1775117450230,1000.0,0.000325,120]
[419291893,1775117456207,500.0,0.000325,120]
[419291895,1775117553935,500.0,0.00036549,120]
[419291896,1775117564072,223.97653442,0.00036549,120]
[419291897,1775117564109,220.31044494,0.00036549,120]
[419291898,1775117564145,275.51443581,0.00036549,120]
[419291899,1775117564246,1000.0,0.00036549,30]
[419291900,1775117564382,223.97653442,0.00036549,120]
[419291901,1775117564422,275.51443581,0.00036549,120]
[419291902,1775117564457,220.31044494,0.00036549,120]
[419291903,1775117564692,223.97653442,0.00036549,120]
[419291904,1775117564731,275.51443581,0.00036549,120]
[419291905,1775117565441,1500.0,0.00032876,120]
[419291907,1775117818545,1500.0,0.00032876,120]
[419291908,1775117836134,2104.91953268,0.00036547,30]
[419291909,1775117845397,500.0,0.00036547,120]
[419291910,1775118037452,1500.0,0.00032876,120]
[419291912,1775118074901,653.81126964,0.00036547,120]
[419291913,1775118082425,2846.64,0.000328,120]
[419291915,1775118145214,500.0,0.00036547,120]
[419291917,1775118174348,164.978727,0.00019655,120]
[419291919,1775118234663,500.26,0.00036547,120]
[419291920,1775118246347,500.0,0.00036547,30]
[419291922,1775118288573,1500.0,0.00032876,120]
[419291923,1775118445076,500.0,0.00036547,120]
[419291924,1775118526796,1500.0,0.00032876,120]
[419291929,1775118632135,-1000.0,0.00013699,2]
[419291930,1775118632145,-827.36218928,0.00018875,2]
[419291931,1775118632154,-164.978727,0.00019655,2]
[419291932,1775118632164,-164.978727,0.00019655,61]
[419291933,1775118632174,-974.23318027,0.00019868,2]
[419292116,1775118638294,-773.36856507,0.00019868,2]
[419292118,1775118638304,-424.238,0.00020202,2]
[419292119,1775118638314,-1617.1487702,0.00020252,2]
[419292120,1775118638323,-589.71362038,0.00020414,15]
[419292121,1775118638332,-1000.0,0.00020496,2]
[419292122,1775118638341,-300.0,0.00020504,2]
[419292123,1775118638351,-211.0,0.00020504,2]
[419292124,1775118638360,-2068.83718648,0.00020505,2]
[419292125,1775118638454,-235.41672072,0.00020505,2]
[419292126,1775118638464,-461.90066086,0.00020514,2]
[419292127,1775118638475,-38.09933914,0.00020514,2]
[419292128,1775118638484,-547.60149559,0.00020514,2]
[419292129,1775118638493,-500.0,0.00020514,2]
[419292130,1775118638502,-166.0440014,0.00020514,2]
[419292131,1775118638512,-394.73782283,0.00020514,2]
[419292132,1775118638521,-205.90518003,0.00020514,2]
[419292133,1775118638530,-13388.75578398,0.00020515,2]
[419292134,1775118638544,-46466.09104626,0.00020515,2]
[419292347,1775118643644,-3872.88321488,0.00020515,2]
[419292359,1775118643752,-19306.9,0.00020515,2]
[419292496,1775118646635,-3952.86633803,0.00020515,2]
[419292497,1775118646646,-921.64530477,0.00020515,2]
[419292498,1775118646691,-10593.26093907,0.00020515,2]
[419292515,1775118758913,500.0,0.00036548,120]
[419292516,1775118768522,1500.0,0.00032876,120]
[419292517,1775118825160,1642.89,0.00036548,120]
[419292518,1775118825386,1642.89,0.00036548,120]
[419292519,1775118825729,1642.89,0.00036548,120]
[419292520,1775118826593,1642.89,0.00036548,120]
[419292521,1775118826852,1642.89,0.00036548,120]
[419292522,1775118827129,1642.89,0.00036548,120]
[419292523,1775118827390,1642.89,0.00036548,120]
[419292524,1775118827640,1642.89,0.00036548,120]
[419292525,1775118827868,1642.89,0.00036548,120]
[419292526,1775118828129,1642.89,0.00036548,120]
[419292527,1775118828348,1642.89,0.00036548,120]
[419292528,1775118828666,1642.89,0.00036548,120]
[419292529,1775118828895,1642.89,0.00036548,120]
[419292530,1775118829128,1642.89,0.00036548,120]
[419292531,1775118829357,1642.89,0.00036548,120]
[419292532,1775118829610,1642.89,0.00036548,120]
[419292533,1775118829846,1642.89,0.00036548,120]
[419292534,1775118830112,1642.89,0.00036548,120]
[419292535,1775118830516,1642.89,0.00036548,120]
[419292536,1775118830743,1642.89,0.00036548,120]
[419292537,1775118830995,1642.89,0.00036548,120]
[419292538,1775118831247,1642.89,0.00036548,120]
[419292539,1775118831483,1642.89,0.00036548,120]
[419292540,1775118831707,1642.97427697,0.00036548,120]
[419292541,1775119003058,1500.0,0.00032876,120]
[419292542,1775119052843,500.0,0.00036545,120]
[419292543,1775119221217,273.55279227,0.00032876,120]
[419292544,1775119255110,1500.0,0.00032876,120]
[419292545,1775119344907,500.0,0.00036546,120]
[419292546,1775119440933,3080.0,0.00032777,120]
[419292547,1775119443185,3080.0,0.00032777,120]
[419292548,1775119445486,3080.0,0.00032777,120]
[419292549,1775119474096,1500.0,0.00032876,120]
[419292550,1775119491484,3080.0,0.00032777,120]
[419292551,1775119542781,3080.0,0.000328,120]
[419292552,1775119645050,500.0,0.00036546,120]
[419292554,1775119747011,1500.0,0.00032876,120]
[419292564,1775119832456,-1000.0,0.00013699,2]
[419292565,1775119832465,-255.08303506,0.00019868,2]
[419292566,1775119832475,-291.52346864,0.00019868,2]
[419292567,1775119832484,-455.04991433,0.00019868,2]
[419292568,1775119832495,-427.688,0.00020006,2]
[419292569,1775119832504,-186.15207825,0.00020006,2]
[419292570,1775119832514,-1000.0,0.00020112,2]
[419292571,1775119832523,-2016.2221688,0.00020215,2]
[419292572,1775119832532,-300.0,0.00020313,2]
[419292573,1775119832542,-202.0,0.00020313,2]
[419292574,1775119832551,-453.15654153,0.00020314,2]
[419292575,1775119832560,-500.0,0.00020314,2]
[419292577,1775119832570,-476.31647598,0.00020314,2]
[419292578,1775119832579,-2436.72738521,0.00020315,2]
[419292579,1775119832589,-4258.71887562,0.00020315,2]
[419292580,1775119832600,-2751.07633631,0.00020315,2]
[419292600,1775119838623,-1208.7291331,0.00020315,2]
[419292658,1775119841094,-10037.54980685,0.00020315,2]
[419292669,1775119841201,-6640.00000163,0.00020315,2]
[419292888,1775119843813,-2436.72738521,0.00020315,2]
[419292905,1775119843973,-39916.6,0.00020315,2]
[419292911,1775119844026,-3343.35704555,0.00020315,2]
[419293137,1775119846959,-32398.21095497,0.00020315,2]
[419293176,1775119850696,9999.008999,0.00036546,30]
[419293178,1775119924085,674.0,0.00036546,30]
[419293179,1775119968111,1500.0,0.00032876,120]
[419293180,1775119984205,834.45,0.00036546,120]
[419293181,1775119984547,834.45,0.00036546,120]
[419293182,1775119984827,834.45,0.00036546,120]
[419293183,1775119985076,834.45,0.00036546,120]
[419293184,1775119985294,834.45,0.00036546,120]
[419293185,1775119985508,834.45,0.00036546,120]
[419293186,1775119985757,834.45,0.00036546,120]
[419293187,1775119985975,834.45,0.00036546,120]
[419293188,1775119986198,834.45,0.00036546,120]
[419293189,1775119986541,834.45,0.00036546,120]
[419293190,1775119986669,834.45,0.00036546,120]
[419293191,1775119986888,834.45,0.00036546,120]
[419293192,1775119987150,834.45,0.00036546,120]
[419293193,1775119987392,834.45,0.00036546,120]
[419293194,1775119987621,834.45,0.00036546,120]
[419293195,1775119987847,834.45,0.00036546,120]
[419293196,1775119988068,834.45,0.00036546,120]
[419293197,1775119988287,834.45,0.00036546,120]
[419293198,1775119988517,834.45,0.00036546,120]
[419293199,1775119988732,834.45,0.00036546,120]
[419293200,1775119989026,834.45,0.00036546,120]
[419293201,1775119989243,834.45,0.00036546,120]
[419293202,1775119989487,834.45,0.00036546,120]
[419293203,1775119989708,834.5496118,0.00036546,120]
[419293204,1775120118647,305.6,0.00032877,120]
[419293205,1775120199475,1500.0,0.00032876,120]
[419293206,1775120253732,500.0,0.00036581,120]
[419293207,1775120253979,500.0,0.00036581,120]
[419293208,1775120254227,500.0,0.00036581,120]
[419293209,1775120254481,500.0,0.00036581,120]
[419293210,1775120254712,500.0,0.00036581,120]
[419293211,1775120254939,500.0,0.00036581,120]
[419293212,1775120255204,500.0,0.00036581,120]
[419293213,1775120255418,500.0,0.00036581,120]
[419293214,1775120255652,500.0,0.00036581,120]
[419293215,1775120255890,500.0,0.00036581,120]
[419293216,1775120256121,500.0,0.00036581,120]
[419293217,1775120256343,500.0,0.00036581,120]
[419293218,1775120256607,500.0,0.00036581,120]
[419293219,1775120256853,500.0,0.00036581,120]
[419293220,1775120257073,500.0,0.00036581,120]
[419293221,1775120257300,499.0,0.00036581,120]
[419293222,1775120266206,281.49827867,0.00036581,120]
[419293226,1775120444383,1000.0,0.00036581,30]
[419293227,1775120446579,1500.0,0.00032876,120]
[419293228,1775120481323,-556.13607784,0.00013699,2]
[419293229,1775120677633,1500.0,0.00032876,120]
[419293230,1775120697986,290.0,9.001e-05,2]
[419293231,1775120740639,500.0,0.00036581,120]
[419293232,1775120740890,500.0,0.00036581,120]
[419293233,1775120741172,470.61001101,0.00036581,120]
[419293234,1775120920933,1500.0,0.00032876,120]
[419293235,1775120938094,3612.0,0.00036581,120]
[419293471,1775121039023,-190.0,0.0001,7]
[419293473,1775121039032,-1000.0,0.00013699,2]
[419293475,1775121039042,-1063.29866641,0.00014175,2]
[419293477,1775121039053,-2076.74614111,0.00015525,3]
[419293479,1775121039063,-250.0,0.00018101,2]
[419293481,1775121039072,-349.57449717,0.00018875,2]
[419293483,1775121039081,-5018.1553184,0.00019263,2]
[419293485,1775121039091,-2652.04931099,0.00019576,16]
[419293487,1775121039101,-342.15,0.00019712,2]
[419293489,1775121039110,-232.08422718,0.00019973,3]
[419293491,1775121039119,-1764.1943977,0.00019973,2]
[419293493,1775121039128,-383.4608744,0.00020014,2]
[419293495,1775121039139,-500.0,0.00020014,2]
[419293497,1775121039149,-183.42153318,0.00020014,2]
[419293500,1775121039160,-154.09101497,0.00020014,2]
[419293502,1775121039169,-500.0,0.00020014,2]
[419293504,1775121039179,-500.0,0.00020014,2]
[419293506,1775121039188,-450.78127967,0.00020014,2]
[419293508,1775121039197,-1151120.13422805,0.00020015,2]
[419293510,1775121039209,-6635.43748096,0.00020015,2]
[419293688,1775121042144,-4457.52809799,0.00020015,2]
[419293691,1775121042155,-1333.65335123,0.00020015,2]
[419293696,1775121042197,-712.22,0.00020015,2]
[419293822,1775121044061,-14559.34357715,0.00020015,2]
[419293828,1775121046815,-331.12,0.00020015,2]
[419293829,1775121046868,-1839.28398136,0.00020015,2]
[419293831,1775121047084,-13700.12653948,0.00020015,2]
[419293838,1775121152170,2385.84,0.00032877,120]
[419293839,1775121156389,1500.0,0.00032876,120]
[419293842,1775121418209,1500.0,0.00032876,120]
[419293843,1775121575899,500.0,0.00036527,120]
[419293844,1775121576164,500.0,0.00036527,120]
[419293845,1775121576414,500.0,0.00036527,120]
[419293846,1775121576637,500.0,0.00036527,120]
[419293847,1775121576895,424.47862399,0.00036527,120]
[419293848,1775121637667,1500.0,0.00032876,120]
[419293849,1775121807018,1000.52,0.00036527,120]
[419293850,1775121814675,10000.0,0.00032877,120]
[419293851,1775121825761,10000.0,0.00032877,120]
[419293852,1775121844913,10000.0,0.00032877,120]
[419293853,1775121859393,10000.0,0.00032877,120]
[419293854,1775121866558,10000.0,0.00032877,120]
[419293855,1775121874120,8421.3,0.00032877,120]
[419293856,1775121901108,1500.0,0.00032876,120]
[419293858,1775122092942,-500.0,0.00013699,2]
[419293859,1775122118930,1500.0,0.00032876,120]
[419293896,1775122231702,-500.0,0.00013699,2]
[419293898,1775122231711,-170.00909895,0.00013699,2]
[419293904,1775122231756,-444.99090105,0.00013699,2]
[419293905,1775122231766,-474.5874,0.00015,2]
[419293908,1775122231777,-307.84618842,0.00018514,2]
[419293909,1775122231786,-351.82421533,0.00018514,2]
[419293910,1775122231795,-549.17561112,0.00018514,2]
[419293911,1775122231805,-1000.0,0.0001905,2]
[419293912,1775122231814,-207.31294389,0.00019488,2]
[419293913,1775122231823,-373.163299,0.00019488,2]
[419293914,1775122231831,-663.40142045,0.00019488,2]
[419293915,1775122231840,-1035.52815473,0.00019488,2]
[419293916,1775122231850,-204.7288454,0.00019488,2]
[419293917,1775122231859,-233.97582332,0.00019488,2]
[419293918,1775122231868,-365.22163671,0.00019488,2]
[419293919,1775122231878,-273.72,0.00019516,2]
[419293920,1775122231887,-1543.67009797,0.00019715,2]
[419293921,1775122231897,-314.79851882,0.00019814,2]
[419293922,1775122231906,-478.39507323,0.00019814,2]
[419293923,1775122231915,-340.30671992,0.00019814,2]
[419293924,1775122231924,-103121.92492737,0.00019815,2]
[419294124,1775122238031,-50583.42031463,0.00019815,2]
[419294125,1775122238043,-5675.334293,0.00019815,2]
[419294170,1775122240643,-1650.83356666,0.00019815,2]
[419294430,1775122243345,283.0,0.00036526,120]
[419294608,1775122246195,-2394.21451842,0.00019815,2]
[419294614,1775122246250,-19772.53587757,0.00019815,2]
[419294625,1775122281435,-3420.37706948,0.00013562,2]
[419294626,1775122317015,2275.0,0.000309,120]
[419294627,1775122317340,2275.0,0.000319,120]
[419294629,1775122365833,1500.0,0.00032876,120]
[419294632,1775122619009,1500.0,0.00032876,120]
[419294635,1775122702457,1000.0,0.00032877,120]
[419294637,1775122874964,1500.0,0.00032876,120]
[419294639,1775123095301,4612.65582531,0.00036517,120]
[419294640,1775123116425,1500.0,0.00032876,120]
[419294641,1775123131996,2000.0,0.00036517,30]
[419294642,1775123211094,500.0,0.0003287,120]
[419294643,1775123228944,500.0,0.0003287,120]
[419294644,1775123245621,1000.0,0.0003287,120]
[419294645,1775123250696,500.0,0.00036517,120]
[419294646,1775123250917,500.0,0.00036517,120]
[419294647,1775123251137,500.0,0.00036517,120]
[419294648,1775123251360,500.0,0.00036517,120]
[419294649,1775123251587,500.0,0.00036517,120]
[419294650,1775123251802,500.0,0.00036517,120]
[419294651,1775123252015,500.0,0.00036517,120]
[419294652,1775123252238,500.0,0.00036517,120]
[419294653,1775123252482,500.0,0.00036517,120]
[419294654,1775123252713,500.0,0.00036517,120]
[419294655,1775123252967,500.0,0.00036517,120]
[419294656,1775123253223,500.0,0.00036517,120]
[419294657,1775123253448,411.83061055,0.00036517,120]
[419294658,1775123303207,-151.0,0.00013233,14]
[419294659,1775123304755,-151.0,0.00013233,14]
[419294660,1775123305868,-151.0,0.00013233,14]
[419294661,1775123308256,-88.05021167,0.00013233,14]
[419294662,1775123314524,563.2789965,0.00032876,120]
[419294663,1775123335846,1500.0,0.00032876,120]
[419294685,1775123433503,-435.04111901,0.00012603,2]
[419295288,1775123446556,-106.00909266,0.00012603,2]
[419295290,1775123446565,-430.78322542,0.00012603,2]
[419295413,1775123550125,522.0,0.0003652,30]
[419295414,1775123556717,1500.0,0.00032876,120]
[419295416,1775123803876,1500.0,0.00032876,120]
[419295417,1775123822966,10000.0,0.000328,120]
[419295418,1775123825265,10000.0,0.000328,120]
[419295419,1775123827499,10000.0,0.000328,120]
[419295422,1775124028681,9999.0,0.0003652,30]
[419295423,1775124044949,1500.0,0.00032876,120]
[419295424,1775124061866,-541.05021167,0.00012855,7]
[419295425,1775124078564,-675.84459863,0.00013699,2]
[419295426,1775124107779,-216.8948103,0.00013699,2]
[419295427,1775124190918,505.0,0.0003652,30]
[419295428,1775124276393,1500.0,0.00032876,120]
[419295430,1775124316953,12329.906156,0.00032777,120]
[419295433,1775124430687,1000.55,0.0003652,120]
[419295435,1775124517530,4681.28,0.0003652,120]
[419295436,1775124517754,4681.28,0.0003652,120]
[419295437,1775124517989,4681.28,0.0003652,120]
[419295438,1775124518248,4681.28,0.0003652,120]
[419295439,1775124518530,4681.28,0.0003652,120]
[419295440,1775124519021,4681.28,0.0003652,120]
[419295441,1775124519272,4681.28,0.0003652,120]
[419295442,1775124519522,4681.28,0.0003652,120]
[419295443,1775124519763,4681.28,0.0003652,120]
[419295444,1775124520029,4681.28,0.0003652,120]
[419295445,1775124520318,4681.28,0.0003652,120]
[419295446,1775124520552,4681.28,0.0003652,120]
[419295447,1775124520910,4681.28,0.0003652,120]
[419295448,1775124521044,4681.28,0.0003652,120]
[419295449,1775124521419,4681.28,0.0003652,120]
[419295450,1775124521513,4681.28,0.0003652,120]
[419295451,1775124521782,4681.28,0.0003652,120]
[419295452,1775124522056,4681.28,0.0003652,120]
[419295453,1775124522291,4681.28,0.0003652,120]
[419295454,1775124522529,4681.28,0.0003652,120]
[419295455,1775124522761,4681.28,0.0003652,120]
[419295456,1775124523022,4681.28,0.0003652,120]
[419295457,1775124523650,4681.28,0.0003652,120]
[419295458,1775124523915,4681.34542205,0.0003652,120]
[419295465,1775124614941,15562.54143491,0.0003652,33]
[419295493,1775124632325,-611.0,0.00013425,2]
[419295494,1775124632335,-300.0,0.00013608,2]
[419295495,1775124632345,-300.0,0.00013608,2]
[419295496,1775124632355,-782.38,0.00013608,2]
[419295525,1775124638377,-417.62,0.00013608,2]
[419295526,1775124638387,-306.79878897,0.00013609,2]
[419295527,1775124638397,-552.23782015,0.00013609,2]
[419295528,1775124638407,-981.7561247,0.00013609,2]
[419295529,1775124638416,-1532.45995091,0.00013609,2]
[419295530,1775124638425,-1000.0,0.00013699,2]
[419295531,1775124638435,-1022.22956757,0.00014175,2]
[419295532,1775124638445,-595.87368158,0.00014175,2]
[419295533,1775124638454,-857.0,0.00014969,2]
[419295534,1775124638463,-286.41,0.00015,2]
[419295535,1775124638473,-162.12,0.00015,3]
[419295536,1775124638484,-276.647227,0.0001515,20]
[419295537,1775124638494,-286.41,0.00016,2]
[419295538,1775124638504,-162.12,0.00016,3]
[419295539,1775124638514,-183.74,0.00016,5]
[419295540,1775124638523,-1625.61637525,0.00016977,2]
[419295541,1775124638533,-286.41,0.00017,2]
[419295542,1775124638542,-162.12,0.00017,3]
[419295543,1775124638552,-286.41,0.00018,2]
[419295544,1775124638561,-162.12,0.00018,3]
[419295545,1775124638571,-275.61,0.00018,5]
[419295546,1775124638580,-3067.17024628,0.00018,2]
[419295547,1775124638590,-182.9178306,0.00018063,2]
[419295548,1775124638599,-329.25209508,0.00018063,2]
[419295549,1775124638609,-585.33705792,0.00018063,2]
[419295550,1775124638618,-331.36362291,0.00018263,2]
[419295551,1775124638628,-913.67456384,0.00018263,2]
[419295552,1775124638638,-483.7926449,0.00018437,2]
[419295553,1775124638647,-286.41,0.00019,2]
[419295554,1775124638657,-162.12,0.00019,3]
[419295555,1775124638666,-311.85580078,0.00019014,2]
[419295556,1775124638675,-561.34044141,0.00019014,2]
[419295557,1775124638685,-72.75843675,0.00019014,2]
[419295896,1775124646679,-704.0,0.00019014,2]
[419295898,1775124646690,-925.18012575,0.00019014,2]
[419295901,1775124646701,-1559.27900391,0.00019014,2]
[419295903,1775124646711,-439.81523571,0.00019014,2]
[419296522,1775124774995,500.0,0.0003652,120]
[419296523,1775124775242,500.0,0.0003652,120]
[419296524,1775124775488,242.19943404,0.0003652,120]
[419296526,1775124786349,805.35550168,0.0003652,120]
[419296527,1775124855581,164.978727,0.00016717,120]
[419296528,1775125063967,500.0,0.00036521,60]
[419296529,1775125064208,500.0,0.00036521,60]
[419296530,1775125064446,500.0,0.00036521,60]
[419296531,1775125064687,500.0,0.00036521,60]
[419296532,1775125064915,500.0,0.00036521,60]
[419296533,1775125065156,566.539493,0.00036521,60]
[419296534,1775125079780,300.0,0.00032849,120]
[419296535,1775125079822,300.0,0.00032849,120]
[419296536,1775125082045,300.0,0.00032849,120]
[419296537,1775125082232,288.9988679,0.00032849,120]
[419296538,1775125084303,253.78941424,0.00032849,120]
[419296539,1775125098366,1905.752697,0.00036521,60]
[419296540,1775125099093,1905.752697,0.00036521,60]
[419296541,1775125104170,1905.752697,0.00036521,60]
[419296542,1775125106265,1905.752697,0.00036521,60]
[419296543,1775125107033,1905.752697,0.00036521,60]
[419296544,1775125107519,1905.752697,0.00036521,60]
[419296545,1775125107900,1905.752697,0.00036521,60]
[419296546,1775125108582,1905.752697,0.00036521,60]
[419296547,1775125109609,1905.752697,0.00036521,60]
[419296548,1775125110396,1905.752697,0.00036521,60]
[419296549,1775125110914,1500.0,0.00032877,120]
[419296550,1775125112189,1905.752697,0.00036521,60]
[419296551,1775125112568,1905.752697,0.00036521,60]
[419296552,1775125112925,1905.752697,0.00036521,60]
[419296553,1775125113632,1905.752697,0.00036521,60]
[419296554,1775125186866,200.0,0.00036521,30]
[419296555,1775125231750,199.0,0.00032876,120]
[419296556,1775125269808,1270.501798,0.00036521,60]
[419296557,1775125270356,1270.501798,0.00036521,60]
[419296558,1775125270975,1270.501798,0.00036521,60]
[419296559,1775125271930,1270.501798,0.00036521,60]
[419296560,1775125272485,1270.501798,0.00036521,60]
[419296561,1775125273077,1270.501798,0.00036521,60]
[419296562,1775125273513,1270.501798,0.00036521,60]
[419296563,1775125274694,1270.501798,0.00036521,60]
[419296564,1775125274738,3000.0,0.00036521,30]